bitfinex/quotes_SOLUSD_20230112
["timestamp","ask_amount","ask_price","bid_price","bid_amount"]
[1673487438264,17.82040006,16.556,16.536,47.29]
[1673487438474,45.32,16.555,16.536,47.29]
[1673487438802,45.32,16.555,16.537,20.0]
[1673487439013,63.14040006,16.555,16.538,45.37]
[1673487439844,18.92,16.554,16.538,45.37]
[1673487440060,65.33,16.553,16.538,45.37]
[1673487440277,65.33,16.553,16.537,20.0]
[1673487440278,124.85,16.55,16.534,111.4951]
[1673487440466,66.3,16.549,16.534,111.4951]
[1673487440680,17.96,16.548,16.534,111.4951]
[1673487440894,46.3,16.547,16.534,111.4951]
[1673487441101,18.92,16.546,16.535,20.0]
[1673487441838,18.92,16.546,16.534,111.4951]
[1673487442040,45.35,16.545,16.534,111.4951]
[1673487442464,18.92,16.546,16.534,111.4951]
[1673487442685,45.34,16.548,16.534,111.4951]
[1673487442894,24.82,16.55,16.536,20.0]
[1673487443108,38.92,16.549,16.537,45.37]
[1673487443323,17.82040006,16.555,16.537,45.37]
[1673487443324,33.71878175,16.558,16.538,18.92]
[1673487443526,24.97,16.56,16.539,45.36]
[1673487443727,24.97,16.56,16.54,20.96]
[1673487443942,24.97,16.56,16.541,65.36]
[1673487444153,24.97,16.56,16.542,116.1599]
[1673487444362,20.0,16.558,16.543,45.35]
[1673487444574,45.31,16.557,16.542,116.1599]
[1673487444781,20.0,16.556,16.542,116.1599]
[1673487445007,20.0,16.556,16.539,45.36]
[1673487445196,24.97,16.55,16.536,114.7624]
[1673487445402,45.34,16.549,16.536,114.7624]
[1673487445631,24.97,16.55,16.537,20.0]
[1673487445845,17.96,16.549,16.537,20.0]
[1673487446048,0.96,16.548,16.537,20.0]
[1673487446892,0.96,16.548,16.536,160.1324]
[1673487447110,18.78040006,16.548,16.536,114.7624]
[1673487447422,17.96,16.547,16.532,45.38]
[1673487447640,0.96,16.546,16.533,227.3263]
[1673487447824,0.96,16.546,16.535,20.0]
[1673487448158,45.33,16.55,16.535,20.0]
[1673487448368,20.0,16.549,16.535,20.0]
[1673487448556,45.34,16.548,16.533,119.043]
[1673487448778,24.87,16.54,16.526,173.6833]
[1673487448978,24.87,16.54,16.526,153.6833]
[1673487449182,24.87,16.54,16.527,20.0]
[1673487449397,20.0,16.547,16.528,45.39]
[1673487449603,19.0,16.549,16.53,24.86]
[1673487449925,19.0,16.549,16.532,20.0]
[1673487450139,19.0,16.549,16.533,153.6633]
[1673487450348,45.34,16.548,16.533,108.2833]
[1673487450882,0.96,16.547,16.533,108.2833]
[1673487451098,45.34,16.546,16.533,108.2833]
[1673487451319,45.34,16.548,16.533,108.2833]
[1673487451502,45.34,16.548,16.533,216.5423]
[1673487451830,19.0,16.549,16.534,67.3]
[1673487452236,19.0,16.549,16.535,20.0]
[1673487452460,24.82,16.56,16.536,52.31632]
[1673487452780,24.97,16.56,16.541,20.0]
[1673487452969,24.97,16.56,16.542,156.3758]
[1673487453180,24.97,16.56,16.543,20.0]
[1673487453389,24.97,16.56,16.544,155.9264]
[1673487453916,17.0,16.559,16.544,110.5764]
[1673487454343,62.31,16.559,16.544,110.5764]
[1673487455282,1.92,16.558,16.544,110.5764]
[1673487455491,1.92,16.558,16.543,45.35]
[1673487455707,24.87,16.55,16.539,45.36]
[1673487455941,37.96,16.549,16.538,109.9155]
[1673487456123,0.96,16.548,16.538,109.9155]
[1673487456333,0.96,16.547,16.538,109.9155]
[1673487457069,20.0,16.549,16.538,109.9155]
[1673487457279,20.0,16.549,16.539,45.36]
[1673487457592,20.0,16.557,16.54,20.0]
[1673487457811,24.97,16.55,16.541,45.36]
[1673487458015,24.97,16.55,16.54,20.0]
[1673487458016,20.0,16.549,16.54,20.0]
[1673487458227,20.0,16.549,16.541,45.36]
[1673487458865,20.0,16.549,16.54,20.0]
[1673487459488,20.0,16.549,16.539,65.36]
[1673487459698,17.0,16.548,16.539,65.36]
[1673487460970,17.0,16.548,16.539,45.36]
[1673487461801,0.96,16.547,16.535,45.37]
[1673487462010,0.96,16.547,16.536,20.0]
[1673487463827,17.0,16.548,16.537,1.92]
[1673487464137,17.0,16.548,16.539,20.0]
[1673487464322,17.0,16.548,16.54,45.36]
[1673487464537,17.0,16.548,16.541,20.0]
[1673487466009,17.0,16.548,16.54,45.36]
[1673487466531,17.0,16.548,16.538,45.37]
[1673487467161,0.96,16.547,16.534,185.0284]
[1673487467375,0.96,16.547,16.534,119.6484]
[1673487467590,20.96,16.547,16.534,119.6484]
[1673487467801,17.96,16.546,16.534,119.6484]
[1673487468008,0.96,16.545,16.534,119.6484]
[1673487468442,0.96,16.544,16.534,119.6484]
[1673487468974,0.96,16.543,16.534,119.6484]
[1673487469155,0.96,16.543,16.53,45.39]
[1673487469367,124.52,16.54,16.528,45.39]
[1673487469576,37.0,16.539,16.525,65.4]
[1673487469786,1.92,16.538,16.525,65.4]
[1673487470556,1.92,16.538,16.525,45.4]
[1673487470764,1.92,16.538,16.523,65.41]
[1673487471074,21.92,16.538,16.522,155.6114]
[1673487471285,17.0,16.537,16.522,155.6114]
[1673487471489,0.96,16.536,16.523,20.0]
[1673487471813,0.96,16.535,16.524,45.4]
[1673487472027,0.96,16.534,16.525,20.0]
[1673487473599,20.0,16.539,16.525,20.0]
[1673487473911,20.0,16.539,16.526,47.32]
[1673487474316,20.0,16.539,16.527,20.0]
[1673487474540,20.0,16.544,16.528,47.31]
[1673487474748,20.0,16.544,16.529,20.0]
[1673487474941,20.0,16.544,16.53,45.39]
[1673487475909,124.77,16.55,16.53,45.39]
[1673487475910,25.2,16.55,16.531,20.0]
[1673487476126,20.0,16.549,16.532,63.34]
[1673487476441,20.0,16.549,16.534,20.0]
[1673487476628,20.0,16.555,16.535,66.33]
[1673487476841,20.0,16.555,16.536,20.96]
[1673487477169,20.0,16.555,16.537,65.37]
[1673487477380,20.0,16.555,16.538,20.0]
[1673487477604,66.09833509,16.557,16.539,65.36]
[1673487479274,24.97,16.55,16.535,45.37]
[1673487479456,20.0,16.549,16.534,109.5265]
[1673487479667,1.92,16.548,16.534,109.5265]
[1673487480102,18.92,16.548,16.534,109.5265]
[1673487482507,18.92,16.548,16.534,154.9065]
[1673487482926,18.92,16.548,16.534,109.5265]
[1673487483472,66.09833509,16.549,16.535,20.0]
[1673487483788,20.0,16.549,16.536,47.29]
[1673487484190,20.0,16.549,16.537,20.0]
[1673487484398,20.0,16.549,16.538,45.37]
[1673487485033,20.0,16.549,16.539,20.0]
[1673487485244,20.0,16.549,16.54,45.36]
[1673487485892,17.0,16.548,16.538,45.37]
[1673487487050,20.0,16.549,16.538,45.37]
[1673487487368,0.31803281,16.554,16.539,21.92]
[1673487487555,0.31803281,16.554,16.54,45.36]
[1673487487887,0.31803281,16.554,16.542,20.0]
[1673487488075,0.31803281,16.554,16.543,160.8018]
[1673487488501,0.31803281,16.554,16.543,115.4518]
[1673487488712,0.31803281,16.554,16.543,160.8018]
[1673487489569,0.31803281,16.554,16.544,20.0]
[1673487490398,0.31803281,16.554,16.545,47.11953075]
[1673487491343,0.31803281,16.554,16.546,20.0]
[1673487491551,0.31803281,16.554,16.547,1.76953075]
[1673487492517,20.0,16.559,16.547,47.10953075]
[1673487492820,20.0,16.565,16.549,1.76953075]
[1673487493027,45.3,16.564,16.55,45.33]
[1673487493249,20.0,16.563,16.548,20.0]
[1673487493448,20.0,16.563,16.549,46.3]
[1673487493643,75.67888016,16.569,16.55,144.71]
[1673487493858,31.02434787,16.569,16.551,50.06803281]
[1673487494089,31.02434787,16.569,16.552,20.0]
[1673487494404,31.02434787,16.569,16.553,178.32983281]
[1673487494717,31.02434787,16.569,16.554,20.0]
[1673487494920,31.02434787,16.569,16.556,20.0]
[1673487495136,31.02434787,16.569,16.558,2.81803281]
[1673487495342,31.02434787,16.569,16.559,50.04803281]
[1673487495541,31.02434787,16.569,16.56,20.0]
[1673487495752,31.02434787,16.569,16.561,65.3]
[1673487496379,31.02434787,16.569,16.561,45.3]
[1673487496589,31.02434787,16.569,16.558,2.81803281]
[1673487496810,31.02434787,16.569,16.557,2.81803281]
[1673487497010,63.10887841,16.568,16.555,2.81803281]
[1673487497235,24.97,16.56,16.555,2.81803281]
[1673487497444,24.97,16.56,16.549,2.81803281]
[1673487497648,38.92,16.559,16.549,2.81803281]
[1673487498071,38.92,16.559,16.544,20.0]
[1673487498072,63.13887841,16.558,16.544,20.0]
[1673487498378,17.96,16.557,16.546,20.0]
[1673487498583,0.96,16.556,16.546,20.0]
[1673487498798,35.78887841,16.557,16.546,20.0]
[1673487499023,17.82887841,16.556,16.546,20.0]
[1673487499237,18.92,16.555,16.546,20.0]
[1673487499768,36.74887841,16.555,16.546,20.0]
[1673487501643,45.31,16.558,16.546,20.0]
[1673487501852,17.0,16.557,16.546,20.0]
[1673487502181,17.0,16.558,16.546,20.0]
[1673487502390,35.65775682,16.556,16.545,132.2715]
[1673487502602,17.96,16.555,16.545,112.2715]
[1673487502794,0.96,16.554,16.545,112.2715]
[1673487503008,0.96,16.553,16.545,112.2715]
[1673487503535,0.96,16.554,16.545,112.2715]
[1673487503738,0.96,16.553,16.545,112.2715]
[1673487504915,17.0,16.555,16.546,20.0]
[1673487505311,42.64887841,16.56,16.546,20.0]
[1673487505527,42.64887841,16.56,16.546,65.34]
[1673487505747,42.64887841,16.56,16.546,20.0]
[1673487505962,17.82887841,16.558,16.546,20.0]
[1673487506361,65.31,16.559,16.546,20.0]
[1673487506576,19.74887841,16.558,16.546,20.0]
[1673487506799,17.0,16.557,16.546,20.0]
[1673487506994,17.96,16.558,16.547,46.3]
[1673487507206,20.0,16.559,16.548,20.0]
[1673487507417,20.0,16.559,16.549,45.34]
[1673487507631,20.0,16.559,16.55,20.0]
[1673487508709,24.97,16.56,16.549,45.34]
[1673487508895,20.96,16.559,16.549,45.34]
[1673487509101,17.0,16.558,16.549,45.34]
[1673487509750,17.0,16.558,16.548,20.0]
[1673487509968,125.08,16.57,16.548,20.0]
[1673487510158,43.94642891,16.569,16.549,67.26]
[1673487510367,25.2,16.57,16.549,67.26]
[1673487510702,25.2,16.57,16.55,20.0]
[1673487510917,25.2,16.57,16.551,47.25]
[1673487511226,43.94642891,16.574,16.553,1.77912516]
[1673487511437,43.94642891,16.574,16.555,1.83253459]
[1673487511755,43.94642891,16.574,16.557,2.05192825]
[1673487511968,43.94642891,16.574,16.558,45.31]
[1673487512274,102.72165578,16.577,16.558,45.31]
[1673487512275,82.72165578,16.577,16.559,20.0]
[1673487512466,45.26,16.577,16.56,45.31]
[1673487512675,89.19642891,16.579,16.561,40.0]
[1673487512891,43.94642891,16.577,16.561,40.0]
[1673487513640,18.92,16.576,16.561,40.0]
[1673487514255,18.92,16.576,16.562,20.0]
[1673487515010,18.92,16.576,16.56,154.2899]
[1673487515216,24.97,16.57,16.56,108.9799]
[1673487515433,37.0,16.569,16.56,108.9799]
[1673487516051,0.96,16.568,16.557,65.31]
[1673487516250,0.96,16.567,16.557,20.0]
[1673487516466,0.96,16.567,16.556,159.1309]
[1673487516679,0.96,16.566,16.556,113.8109]
[1673487516902,17.96,16.567,16.556,113.8109]
[1673487517097,17.0,16.567,16.556,113.8109]
[1673487517306,17.0,16.568,16.556,113.8109]
[1673487517734,0.96,16.567,16.556,113.8109]
[1673487518348,0.96,16.566,16.557,20.0]
[1673487519110,0.96,16.566,16.556,113.8109]
[1673487521404,46.25,16.566,16.551,108.9799]
[1673487521621,24.97,16.56,16.547,158.6098]
[1673487521824,21.92,16.559,16.547,158.6098]
[1673487522034,38.92,16.559,16.548,20.0]
[1673487522248,37.0,16.559,16.549,45.34]
[1673487522453,37.0,16.559,16.55,20.0]
[1673487525500,37.0,16.559,16.549,45.34]
[1673487525920,0.96,16.558,16.549,45.34]
[1673487526771,0.96,16.558,16.548,65.34]
[1673487527310,37.0,16.559,16.548,65.34]
[1673487527825,20.0,16.559,16.549,1.92]
[1673487528037,20.0,16.56,16.55,45.33]
[1673487528244,45.28,16.569,16.551,21.92]
[1673487528460,45.28,16.569,16.552,45.33]
[1673487528766,25.15,16.57,16.553,21.92]
[1673487528979,20.0,16.569,16.554,157.3435]
[1673487529186,20.0,16.569,16.554,45.32]
[1673487529406,20.0,16.569,16.552,45.33]
[1673487529598,65.28,16.569,16.553,20.0]
[1673487530330,18.92,16.568,16.552,65.33]
[1673487530661,18.92,16.568,16.551,109.4927]
[1673487530662,20.0,16.566,16.551,109.4927]
[1673487530883,18.92,16.565,16.551,109.4927]
[1673487531284,38.50165578,16.568,16.552,45.33]
[1673487531493,20.0,16.569,16.553,20.0]
[1673487531705,65.28,16.569,16.554,45.32]
[1673487531909,65.28,16.569,16.553,20.0]
[1673487532116,45.28,16.569,16.553,20.0]
[1673487532332,125.1,16.57,16.554,45.32]
[1673487532546,20.0,16.569,16.555,20.0]
[1673487533168,20.0,16.569,16.554,45.32]
[1673487533919,20.0,16.569,16.555,1.92]
[1673487534110,20.0,16.569,16.556,45.32]
[1673487534953,20.0,16.569,16.557,21.92]
[1673487535281,20.0,16.569,16.558,45.31]
[1673487536860,17.96,16.568,16.558,45.31]
[1673487537055,17.96,16.568,16.557,45.31]
[1673487537720,20.0,16.569,16.557,20.0]
[1673487537911,20.0,16.569,16.559,20.0]
[1673487538330,20.0,16.569,16.558,45.31]
[1673487538543,20.0,16.569,16.557,45.31]
[1673487538953,17.96,16.568,16.556,113.443]
[1673487539376,63.24,16.568,16.556,113.443]
[1673487539704,63.24,16.568,16.556,110.443]
[1673487540739,20.96,16.567,16.556,110.443]
[1673487540949,17.0,16.566,16.552,45.33]
[1673487541149,24.97,16.56,16.546,45.34]
[1673487541367,24.97,16.56,16.53,99.88]
[1673487541368,84.23,16.559,16.543,45.35]
[1673487541807,84.23,16.559,16.544,20.0]
[1673487542011,82.31,16.559,16.544,20.0]
[1673487542350,17.0,16.558,16.545,47.27]
[1673487542556,17.0,16.558,16.545,45.35]
[1673487542759,0.96,16.557,16.546,20.0]
[1673487543176,0.96,16.557,16.547,45.34]
[1673487543592,0.96,16.557,16.546,20.0]
[1673487543929,17.0,16.558,16.548,20.0]
[1673487544751,17.0,16.558,16.547,45.34]
[1673487545173,0.96,16.557,16.547,45.34]
[1673487545390,0.96,16.557,16.546,20.0]
[1673487546976,20.0,16.559,16.547,1.92]
[1673487547289,20.0,16.563,16.549,20.0]
[1673487547495,20.0,16.565,16.549,20.0]
[1673487547695,45.3,16.564,16.549,20.0]
[1673487547903,20.0,16.563,16.549,20.0]
[1673487548329,17.96,16.562,16.549,20.0]
[1673487548549,20.0,16.561,16.549,20.0]
[1673487548740,41.97,16.56,16.545,114.5161]
[1673487548953,20.96,16.559,16.545,114.5161]
[1673487549167,17.0,16.558,16.545,114.5161]
[1673487549383,0.96,16.557,16.545,114.5161]
[1673487549591,20.0,16.559,16.546,20.0]
[1673487549801,0.96,16.558,16.547,45.34]
[1673487550124,0.96,16.558,16.548,20.0]
[1673487550532,0.96,16.558,16.547,45.34]
[1673487550861,17.96,16.558,16.546,65.34]
[1673487551486,17.96,16.558,16.546,20.0]
[1673487554017,20.0,16.559,16.546,20.0]
[1673487554431,20.0,16.559,16.547,45.34]
[1673487554653,20.0,16.559,16.548,20.0]
[1673487555185,0.96,16.558,16.548,20.0]
[1673487555371,0.96,16.558,16.547,45.34]
[1673487555583,17.96,16.558,16.546,45.34]
[1673487555902,37.0,16.559,16.545,114.5161]
[1673487555903,20.0,16.559,16.545,159.8661]
[1673487556233,45.29,16.567,16.547,19.14496728]
[1673487556431,89.22642891,16.569,16.548,65.34]
[1673487556635,89.22642891,16.569,16.549,40.0]
[1673487556636,43.94642891,16.569,16.549,40.0]
[1673487556844,25.2,16.57,16.55,71.19]
[1673487557068,25.2,16.57,16.551,20.96]
[1673487557278,25.2,16.57,16.552,161.7876]
[1673487557474,25.2,16.57,16.553,20.0]
[1673487557685,25.2,16.57,16.554,45.32]
[1673487557897,17.0,16.569,16.555,20.0]
[1673487558118,1.92,16.568,16.556,45.32]
[1673487558538,1.92,16.568,16.557,20.0]
[1673487558752,25.2,16.57,16.557,20.0]
[1673487558959,20.0,16.569,16.558,45.31]
[1673487559587,20.0,16.569,16.556,45.32]
[1673487559799,1.92,16.568,16.554,45.32]
[1673487560010,18.92,16.568,16.553,45.33]
[1673487560632,64.2,16.568,16.553,45.33]
[1673487561269,18.92,16.568,16.553,45.33]
[1673487562541,18.92,16.568,16.553,65.33]
[1673487562949,65.28,16.569,16.553,65.33]
[1673487563153,20.0,16.569,16.554,20.0]
[1673487563363,20.0,16.569,16.555,45.32]
[1673487563573,20.0,16.569,16.554,65.32]
[1673487564102,20.0,16.569,16.554,45.32]
[1673487564313,17.96,16.568,16.554,45.32]
[1673487564513,17.96,16.568,16.553,65.33]
[1673487564950,17.96,16.568,16.554,20.0]
[1673487565163,17.96,16.568,16.555,45.32]
[1673487565353,17.96,16.568,16.555,42.32]
[1673487565567,20.0,16.567,16.555,42.32]
[1673487565776,17.0,16.566,16.552,160.8276]
[1673487565995,18.92,16.566,16.552,160.8276]
[1673487566828,18.92,16.566,16.553,20.0]
[1673487567780,18.92,16.566,16.552,160.8276]
[1673487568210,1.92,16.566,16.552,160.8276]
[1673487569056,1.92,16.566,16.553,20.0]
[1673487569575,1.92,16.566,16.554,45.32]
[1673487569788,1.92,16.566,16.555,20.0]
[1673487570187,1.92,16.566,16.554,42.32]
[1673487571554,1.92,16.566,16.553,65.33]
[1673487571761,1.92,16.566,16.553,45.33]
[1673487571977,1.92,16.566,16.552,160.8276]
[1673487572297,24.97,16.56,16.551,117.915]
[1673487572626,37.0,16.559,16.551,117.915]
[1673487572932,1.92,16.558,16.551,117.915]
[1673487574831,37.0,16.559,16.551,117.915]
[1673487576390,0.96,16.558,16.551,117.915]
[1673487576922,20.0,16.559,16.552,20.0]
[1673487577133,20.0,16.563,16.552,20.0]
[1673487577348,20.0,16.564,16.551,117.915]
[1673487577671,20.0,16.563,16.551,117.915]
[1673487578383,18.92,16.562,16.551,117.915]
[1673487578589,20.0,16.561,16.551,117.915]
[1673487578799,17.0,16.56,16.553,20.0]
[1673487579054,20.0,16.559,16.553,20.0]
[1673487580195,20.0,16.559,16.553,17.0]
[1673487580532,20.0,16.559,16.552,45.33]
[1673487582620,43.94642891,16.567,16.551,117.915]
[1673487582832,25.15,16.57,16.553,20.0]
[1673487583037,20.0,16.577,16.554,165.0915419]
[1673487583245,20.0,16.577,16.555,20.0]
[1673487583457,65.26,16.577,16.556,49.67659433]
[1673487583664,65.26,16.577,16.557,20.0]
[1673487583880,65.26,16.577,16.558,47.74659433]
[1673487584820,65.26,16.577,16.559,21.92]
[1673487585152,20.0,16.577,16.56,45.31]
[1673487585336,25.13,16.58,16.561,21.92]
[1673487585551,20.0,16.579,16.562,45.3]
[1673487585773,65.25,16.579,16.563,20.0]
[1673487586095,20.0,16.579,16.564,45.3]
[1673487586298,20.0,16.578,16.564,42.3]
[1673487586725,17.96,16.577,16.563,45.3]
[1673487587038,20.0,16.579,16.563,45.3]
[1673487587782,65.25,16.579,16.562,45.3]
[1673487588089,70.38,16.58,16.563,20.0]
[1673487588276,20.96,16.579,16.564,45.3]
[1673487588491,20.0,16.577,16.564,45.3]
[1673487588697,17.0,16.576,16.564,45.3]
[1673487588913,0.96,16.575,16.564,45.3]
[1673487589765,0.96,16.575,16.563,45.3]
[1673487590399,0.96,16.574,16.563,45.3]
[1673487590802,0.96,16.573,16.563,45.3]
[1673487591233,17.0,16.576,16.563,45.3]
[1673487591439,17.0,16.577,16.563,45.3]
[1673487591865,1.92,16.576,16.563,45.3]
[1673487593244,20.0,16.579,16.564,1.92]
[1673487593451,20.0,16.579,16.566,20.0]
[1673487593670,20.0,16.579,16.567,45.29]
[1673487593863,20.0,16.579,16.568,20.0]
[1673487594069,20.0,16.579,16.569,45.28]
[1673487594280,20.0,16.579,16.566,20.0]
[1673487594281,20.0,16.579,16.567,45.29]
[1673487594910,18.92,16.578,16.567,45.29]
[1673487595131,18.92,16.578,16.566,20.0]
[1673487595456,18.92,16.578,16.567,45.29]
[1673487597978,24.82,16.59,16.568,21.92]
[1673487598287,24.82,16.59,16.57,24.86]
[1673487598493,24.82,16.59,16.571,183.8885]
[1673487598701,24.82,16.59,16.572,20.0]
[1673487598900,24.82,16.59,16.573,45.27]
[1673487599114,45.23,16.589,16.573,45.27]
[1673487599527,20.0,16.588,16.573,45.27]
[1673487599859,1.92,16.587,16.573,42.27]
[1673487601010,24.97,16.58,16.567,45.29]
[1673487601215,82.25,16.579,16.563,162.2715]
[1673487601550,84.17,16.579,16.564,20.0]
[1673487602266,84.17,16.579,16.563,162.2715]
[1673487602700,84.17,16.579,16.563,116.9715]
[1673487603014,84.17,16.579,16.564,20.0]
[1673487603229,84.17,16.579,16.564,65.3]
[1673487603539,84.17,16.579,16.564,20.0]
[1673487603751,38.92,16.579,16.564,20.0]
[1673487603959,45.26,16.578,16.564,20.0]
[1673487604168,17.0,16.577,16.564,20.0]
[1673487604368,0.96,16.576,16.564,20.0]
[1673487604568,24.97,16.57,16.558,45.31]
[1673487604780,24.97,16.57,16.548,20.0]
[1673487604781,83.24,16.569,16.554,158.9119]
[1673487605005,83.24,16.569,16.555,20.0]
[1673487605195,37.96,16.569,16.556,45.32]
[1673487605422,37.96,16.569,16.557,20.0]
[1673487606159,37.96,16.569,16.556,45.32]
[1673487606385,37.96,16.569,16.555,20.0]
[1673487606589,37.96,16.569,16.555,45.32]
[1673487606590,45.28,16.568,16.555,45.32]
[1673487606795,18.92,16.567,16.555,45.32]
[1673487606998,18.92,16.567,16.554,113.5919]
[1673487607646,18.92,16.567,16.553,45.33]
[1673487607854,18.92,16.567,16.551,117.915]
[1673487607855,17.82887841,16.566,16.551,117.915]
[1673487608060,17.0,16.565,16.552,20.0]
[1673487608259,0.96,16.564,16.552,65.33]
[1673487608469,24.97,16.56,16.549,20.0]
[1673487608680,37.0,16.559,16.549,20.0]
[1673487608901,37.0,16.559,16.548,20.0]
[1673487608902,0.96,16.558,16.548,20.0]
[1673487610376,0.96,16.558,16.547,112.3459]
[1673487611757,0.96,16.558,16.545,45.35]
[1673487611938,0.96,16.558,16.545,20.0]
[1673487612149,20.0,16.559,16.545,20.0]
[1673487613323,17.96,16.558,16.545,20.0]
[1673487616473,0.96,16.557,16.545,20.0]
[1673487616783,0.96,16.557,16.545,65.35]
[1673487616982,0.96,16.556,16.545,65.35]
[1673487617193,0.96,16.556,16.545,45.35]
[1673487617421,17.0,16.558,16.544,45.35]
[1673487617627,0.96,16.557,16.542,223.6574]
[1673487617837,17.82887841,16.556,16.543,20.0]
[1673487618048,17.96,16.555,16.543,20.0]
[1673487618255,0.96,16.557,16.543,65.35]
[1673487618468,62.31,16.558,16.543,20.0]
[1673487618683,0.96,16.557,16.543,20.0]
[1673487619313,38.78887841,16.557,16.542,223.6574]
[1673487619519,17.0,16.556,16.542,223.6574]
[1673487619727,0.96,16.555,16.543,20.0]
[1673487619942,24.97,16.55,16.543,20.0]
[1673487620148,17.0,16.549,16.543,20.0]
[1673487620677,17.0,16.549,16.544,45.35]
[1673487621088,17.0,16.549,16.543,65.35]
[1673487621308,0.96,16.548,16.543,45.35]
[1673487621501,0.96,16.548,16.538,45.37]
[1673487622124,0.96,16.548,16.537,65.37]
[1673487622348,0.96,16.547,16.537,65.37]
[1673487622563,0.96,16.547,16.537,20.0]
[1673487622763,0.96,16.546,16.537,20.0]
[1673487623093,1.92,16.546,16.537,20.0]
[1673487623291,24.81,16.55,16.538,0.96]
[1673487623514,45.31,16.559,16.539,20.0]
[1673487623829,37.82887841,16.558,16.54,47.28]
[1673487624154,37.82887841,16.558,16.541,20.0]
[1673487624470,37.82887841,16.558,16.542,45.36]
[1673487624778,17.82887841,16.557,16.544,20.0]
[1673487624968,17.82887841,16.557,16.544,65.35]
[1673487624969,17.0,16.556,16.544,65.35]
[1673487625179,0.96,16.555,16.544,65.35]
[1673487625502,0.96,16.554,16.544,65.35]
[1673487625711,0.96,16.553,16.544,65.35]
[1673487626032,0.96,16.553,16.544,45.35]
[1673487626240,0.96,16.553,16.543,156.4795]
[1673487626434,0.96,16.552,16.543,45.35]
[1673487626768,24.81,16.55,16.538,45.37]
[1673487626959,24.81,16.55,16.531,20.0]
[1673487626960,17.0,16.549,16.537,65.37]
[1673487627171,0.96,16.548,16.537,20.0]
[1673487627380,0.96,16.547,16.537,20.0]
[1673487629405,0.96,16.547,16.536,65.37]